fUST/lending_fUST_20260508
["ID","MTS","AMOUNT","RATE_DAILY","PERIOD"]
[421869644,1778254232000,-2512.92,0.00010958,2]
[421869647,1778254232000,-500.0,0.00010958,2]
[421869648,1778254232000,-500.0,0.00010958,2]
[421869646,1778254232000,-500.0,0.00010958,2]
[421869649,1778254232000,-500.0,0.00010958,2]
[421869655,1778254232000,-500.0,0.00010958,2]
[421869652,1778254232000,-500.0,0.00010958,2]
[421869645,1778254232000,-500.0,0.00010958,2]
[421869650,1778254232000,-500.0,0.00010958,2]
[421869656,1778254232000,-500.0,0.00010958,2]
[421869653,1778254232000,-500.0,0.00010958,2]
[421869619,1778254232000,-300.0,0.00010096,2]
[421869643,1778254232000,-500.0,0.00010958,2]
[421869623,1778254232000,-200.0,0.00010629,2]
[421869610,1778254232000,-300.0,0.00010096,2]
[421869621,1778254232000,-600.0,0.00010096,2]
[421869587,1778254232000,-1099.2175002,8.425e-05,2]
[421869597,1778254232000,-300.0,8.682e-05,2]
[421869589,1778254232000,-5000.0,8.51e-05,2]
[421869600,1778254232000,-300.0,8.77e-05,2]
[421869602,1778254232000,-300.0,8.77e-05,2]
[421869599,1778254232000,-300.0,8.77e-05,2]
[421869591,1778254232000,-325.45412266,8.553e-05,2]
[421869593,1778254232000,-1200.0,8.595e-05,2]
[421869594,1778254232000,-5000.0,8.596e-05,2]
[421869604,1778254232000,-300.0,0.00010096,2]
[421869607,1778254232000,-300.0,0.00010096,2]
[421869609,1778254232000,-300.0,0.00010096,2]
[421869613,1778254232000,-300.0,0.00010096,2]
[421869605,1778254232000,-300.0,0.00010096,2]
[421869654,1778254232000,-500.0,0.00010958,2]
[421869611,1778254232000,-300.0,0.00010096,2]
[421869618,1778254232000,-300.0,0.00010096,2]
[421869616,1778254232000,-300.0,0.00010096,2]
[421869615,1778254232000,-300.0,0.00010096,2]
[421869617,1778254232000,-300.0,0.00010096,2]
[421869612,1778254232000,-300.0,0.00010096,2]
[421869614,1778254232000,-300.0,0.00010096,2]
[421869620,1778254232000,-300.0,0.00010096,2]
[421869631,1778254232000,-500.0,0.00010958,2]
[421869630,1778254232000,-500.0,0.00010958,2]
[421869622,1778254232000,-384.03586474,0.00010553,2]
[421869627,1778254232000,-500.0,0.00010958,2]
[421869624,1778254232000,-200.0,0.00010629,2]
[421869658,1778254232000,-645.35,0.00010958,2]
[421869636,1778254232000,-500.0,0.00010958,2]
[421869659,1778254232000,-500.0,0.00010958,2]
[421869689,1778254232000,-500.0,0.00011131,2]
[421869688,1778254232000,-500.0,0.00011131,2]
[421869693,1778254232000,-500.0,0.00011131,2]
[421869697,1778254232000,-500.0,0.00011131,2]
[421869698,1778254232000,-500.0,0.00011131,2]
[421869695,1778254232000,-500.0,0.00011131,2]
[421869704,1778254232000,-500.0,0.00011131,2]
[421869696,1778254232000,-500.0,0.00011131,2]
[421869701,1778254232000,-500.0,0.00011131,2]
[421869699,1778254232000,-500.0,0.00011131,2]
[421869703,1778254232000,-500.0,0.00011131,2]
[421869707,1778254232000,-500.0,0.00011131,2]
[421869702,1778254232000,-500.0,0.00011131,2]
[421869694,1778254232000,-500.0,0.00011131,2]
[421869706,1778254232000,-500.0,0.00011131,2]
[421869705,1778254232000,-500.0,0.00011131,2]
[421869708,1778254232000,-500.0,0.00011131,2]
[421869709,1778254232000,-500.0,0.00011131,2]
[421869711,1778254232000,-500.0,0.00011131,2]
[421869715,1778254232000,-500.0,0.00011131,2]
[421869712,1778254232000,-500.0,0.00011131,2]
[421869716,1778254232000,-500.0,0.00011131,2]
[421869710,1778254232000,-500.0,0.00011131,2]
[421869713,1778254232000,-500.0,0.00011131,2]
[421869714,1778254232000,-500.0,0.00011131,2]
[421869717,1778254232000,-500.0,0.00011131,2]
[421869718,1778254232000,-500.0,0.00011131,2]
[421869657,1778254232000,-500.0,0.00010958,2]
[421869700,1778254232000,-500.0,0.00011131,2]
[421869683,1778254232000,-274.34640859,0.00011131,2]
[421869651,1778254232000,-500.0,0.00010958,2]
[421869687,1778254232000,-500.0,0.00011131,2]
[421869663,1778254232000,-720.0,0.00011106,2]
[421869661,1778254232000,-500.0,0.00010958,2]
[421869662,1778254232000,-200.0,0.0001096,2]
[421869664,1778254232000,-500.0,0.00011131,2]
[421869660,1778254232000,-500.0,0.00010958,2]
[421869692,1778254232000,-500.0,0.00011131,2]
[421869666,1778254232000,-439.06521334,0.00011131,2]
[421869668,1778254232000,-205.27528512,0.00011131,2]
[421869667,1778254232000,-500.0,0.00011131,2]
[421869665,1778254232000,-500.0,0.00011131,2]
[421869672,1778254232000,-500.0,0.00011131,2]
[421869673,1778254232000,-500.0,0.00011131,2]
[421869670,1778254232000,-500.0,0.00011131,2]
[421869671,1778254232000,-500.0,0.00011131,2]
[421869669,1778254232000,-500.0,0.00011131,2]
[421869675,1778254232000,-500.0,0.00011131,2]
[421869691,1778254232000,-543.34741242,0.00011131,2]
[421869690,1778254232000,-500.0,0.00011131,2]
[421869674,1778254232000,-272.79009297,0.00011131,2]
[421869685,1778254232000,-500.0,0.00011131,2]
[421869684,1778254232000,-500.0,0.00011131,2]
[421869682,1778254232000,-500.0,0.00011131,2]
[421869686,1778254232000,-500.0,0.00011131,2]
[421869679,1778254232000,-500.0,0.00011131,2]
[421869680,1778254232000,-500.0,0.00011131,2]
[421869678,1778254232000,-500.0,0.00011131,2]
[421869677,1778254232000,-500.0,0.00011131,2]
[421869676,1778254232000,-530.69185656,0.00011131,2]
[421869681,1778254232000,-500.0,0.00011131,2]
[421869726,1778254233000,-500.0,0.00011131,2]
[421869720,1778254233000,-500.0,0.00011131,2]
[421869719,1778254233000,-500.0,0.00011131,2]
[421869730,1778254233000,-500.0,0.00011131,2]
[421869724,1778254233000,-500.0,0.00011131,2]
[421869731,1778254233000,-600.0,0.00011131,2]
[421869727,1778254233000,-500.0,0.00011131,2]
[421869722,1778254233000,-500.0,0.00011131,2]
[421869729,1778254233000,-500.0,0.00011131,2]
[421869735,1778254233000,-500.0,0.00011131,2]
[421869728,1778254233000,-500.0,0.00011131,2]
[421869721,1778254233000,-500.0,0.00011131,2]
[421869723,1778254233000,-500.0,0.00011131,2]
[421869732,1778254233000,-500.0,0.00011131,2]
[421869733,1778254233000,-500.0,0.00011131,2]
[421869736,1778254233000,-500.0,0.00011131,2]
[421869737,1778254233000,-2046.255977,0.00011132,2]
[421869734,1778254233000,-500.0,0.00011131,2]
[421869725,1778254233000,-500.0,0.00011131,2]
[421869755,1778254237000,-79250.4920102,0.00011132,2]
[421869757,1778254238000,-500.0,0.00011232,2]
[421869781,1778254238000,-500.0,0.00011232,2]
[421869778,1778254238000,-500.0,0.00011232,2]
[421869780,1778254238000,-500.0,0.00011232,2]
[421869785,1778254238000,-500.0,0.00011232,2]
[421869784,1778254238000,-500.0,0.00011232,2]
[421869788,1778254238000,-413.15579705,0.00011405,2]
[421869786,1778254238000,-530.14,0.00011232,2]
[421869782,1778254238000,-500.0,0.00011232,2]
[421869783,1778254238000,-645.35,0.00011232,2]
[421869791,1778254238000,-500.0,0.00011405,2]
[421869787,1778254238000,-200.0,0.00011386,2]
[421869803,1778254238000,-39608.44967573,0.00011406,2]
[421869804,1778254238000,-500.0,0.00011506,2]
[421869792,1778254238000,-500.0,0.00011405,2]
[421869794,1778254238000,-165.53544655,0.00011405,2]
[421869805,1778254238000,-500.0,0.00011506,2]
[421869797,1778254238000,-500.0,0.00011405,2]
[421869801,1778254238000,-500.0,0.00011405,2]
[421869795,1778254238000,-500.0,0.00011405,2]
[421869798,1778254238000,-500.0,0.00011405,2]
[421869793,1778254238000,-500.0,0.00011405,2]
[421869756,1778254238000,-41262.54259104,0.00011132,2]
[421869789,1778254238000,-500.0,0.00011405,2]
[421869779,1778254238000,-510.64,0.00011232,2]
[421869763,1778254238000,-273.86,0.00011232,2]
[421869759,1778254238000,-500.0,0.00011232,2]
[421869762,1778254238000,-500.0,0.00011232,2]
[421869758,1778254238000,-500.0,0.00011232,2]
[421869760,1778254238000,-500.0,0.00011232,2]
[421869761,1778254238000,-500.0,0.00011232,2]
[421869764,1778254238000,-500.0,0.00011232,2]
[421869767,1778254238000,-500.0,0.00011232,2]
[421869768,1778254238000,-500.0,0.00011232,2]
[421869790,1778254238000,-500.0,0.00011405,2]
[421869766,1778254238000,-500.0,0.00011232,2]
[421869770,1778254238000,-2512.92,0.00011232,2]
[421869771,1778254238000,-500.0,0.00011232,2]
[421869774,1778254238000,-500.0,0.00011232,2]
[421869769,1778254238000,-500.0,0.00011232,2]
[421869773,1778254238000,-370.7,0.00011232,2]
[421869772,1778254238000,-500.0,0.00011232,2]
[421869796,1778254238000,-500.0,0.00011405,2]
[421869777,1778254238000,-500.0,0.00011232,2]
[421869776,1778254238000,-500.0,0.00011232,2]
[421869765,1778254238000,-541.6,0.00011232,2]
[421869775,1778254238000,-500.0,0.00011232,2]
[421869800,1778254238000,-500.0,0.00011405,2]
[421869799,1778254238000,-500.0,0.00011405,2]
[421869831,1778254238000,-500.0,0.0001178,2]
[421869832,1778254238000,-500.0,0.0001178,2]
[421869834,1778254238000,-417.82,0.0001178,2]
[421869835,1778254238000,-500.0,0.0001178,2]
[421869838,1778254238000,-500.0,0.0001178,2]
[421869842,1778254238000,-500.0,0.0001178,2]
[421869837,1778254238000,-2512.92,0.0001178,2]
[421869841,1778254238000,-500.0,0.0001178,2]
[421869836,1778254238000,-500.0,0.0001178,2]
[421869844,1778254238000,-500.0,0.0001178,2]
[421869843,1778254238000,-500.0,0.0001178,2]
[421869846,1778254238000,-500.0,0.0001178,2]
[421869840,1778254238000,-500.0,0.0001178,2]
[421869839,1778254238000,-500.0,0.0001178,2]
[421869845,1778254238000,-500.0,0.0001178,2]
[421869847,1778254238000,-645.35,0.0001178,2]
[421869848,1778254238000,-500.0,0.0001178,2]
[421869851,1778254238000,-173.70128651,0.00011834,2]
[421869849,1778254238000,-500.0,0.0001178,2]
[421869850,1778254238000,-200.0,0.00011811,2]
[421869802,1778254238000,-500.0,0.00011405,2]
[421869830,1778254238000,-500.0,0.0001178,2]
[421869823,1778254238000,-500.0,0.00011506,2]
[421869833,1778254238000,-500.0,0.0001178,2]
[421869826,1778254238000,-645.35,0.00011506,2]
[421869825,1778254238000,-500.0,0.00011506,2]
[421869807,1778254238000,-403.64529584,0.00011506,2]
[421869806,1778254238000,-500.0,0.00011506,2]
[421869818,1778254238000,-500.0,0.00011506,2]
[421869817,1778254238000,-500.0,0.00011506,2]
[421869808,1778254238000,-500.0,0.00011506,2]
[421869810,1778254238000,-500.0,0.00011506,2]
[421869816,1778254238000,-500.0,0.00011506,2]
[421869811,1778254238000,-500.0,0.00011506,2]
[421869814,1778254238000,-500.0,0.00011506,2]
[421869809,1778254238000,-468.63,0.00011506,2]
[421869813,1778254238000,-500.0,0.00011506,2]
[421869812,1778254238000,-500.0,0.00011506,2]
[421869819,1778254238000,-500.0,0.00011506,2]
[421869820,1778254238000,-500.0,0.00011506,2]
[421869821,1778254238000,-500.0,0.00011506,2]
[421869824,1778254238000,-500.0,0.00011506,2]
[421869822,1778254238000,-558.71,0.00011506,2]
[421869827,1778254238000,-500.0,0.00011506,2]
[421869828,1778254238000,-500.0,0.00011506,2]
[421869815,1778254238000,-2512.92,0.00011506,2]
[421869829,1778254238000,-277.75006031,0.00011643,3]
[421869901,1778254239000,-500.0,0.00012602,2]
[421869894,1778254239000,-160.0,0.00012542,2]
[421869892,1778254239000,-160.0,0.00012542,2]
[421869887,1778254239000,-500.0,0.00012328,2]
[421869881,1778254239000,-257.41,0.00012328,2]
[421869883,1778254239000,-500.0,0.00012328,2]
[421869884,1778254239000,-500.0,0.00012328,2]
[421869879,1778254239000,-2512.92,0.00012328,2]
[421869889,1778254239000,-500.0,0.00012328,2]
[421869897,1778254239000,-500.0,0.00012602,2]
[421869888,1778254239000,-645.35,0.00012328,2]
[421869886,1778254239000,-500.0,0.00012328,2]
[421869900,1778254239000,-500.0,0.00012602,2]
[421869909,1778254239000,-500.0,0.00012602,2]
[421869896,1778254239000,-500.0,0.00012602,2]
[421869899,1778254239000,-500.0,0.00012602,2]
[421869903,1778254239000,-500.0,0.00012602,2]
[421869895,1778254239000,-442.61760682,0.00012553,2]
[421869902,1778254239000,-2512.92,0.00012602,2]
[421869904,1778254239000,-500.0,0.00012602,2]
[421869898,1778254239000,-500.0,0.00012602,2]
[421869916,1778254239000,-500.0,0.00012876,2]
[421869918,1778254239000,-500.0,0.00012876,2]
[421869905,1778254239000,-500.0,0.00012602,2]
[421869907,1778254239000,-500.0,0.00012602,2]
[421869910,1778254239000,-645.35,0.00012602,2]
[421869885,1778254239000,-500.0,0.00012328,2]
[421869893,1778254239000,-160.0,0.00012542,2]
[421869882,1778254239000,-500.0,0.00012328,2]
[421869860,1778254239000,-492.47,0.00012054,2]
[421869890,1778254239000,-500.0,0.00012328,2]
[421869853,1778254239000,-500.0,0.00012054,2]
[421869852,1778254239000,-500.0,0.00012054,2]
[421869854,1778254239000,-500.0,0.00012054,2]
[421869866,1778254239000,-500.0,0.00012054,2]
[421869856,1778254239000,-500.0,0.00012054,2]
[421869855,1778254239000,-500.0,0.00012054,2]
[421869908,1778254239000,-500.0,0.00012602,2]
[421869858,1778254239000,-2512.92,0.00012054,2]
[421869865,1778254239000,-500.0,0.00012054,2]
[421869862,1778254239000,-500.0,0.00012054,2]
[421869864,1778254239000,-500.0,0.00012054,2]
[421869857,1778254239000,-500.0,0.00012054,2]
[421869859,1778254239000,-500.0,0.00012054,2]
[421869891,1778254239000,-161.58879827,0.00012542,2]
[421869863,1778254239000,-500.0,0.00012054,2]
[421869867,1778254239000,-500.0,0.00012054,2]
[421869878,1778254239000,-500.0,0.00012328,2]
[421869868,1778254239000,-645.35,0.00012054,2]
[421869869,1778254239000,-500.0,0.00012054,2]
[421869870,1778254239000,-500.0,0.00012054,2]
[421869871,1778254239000,-864.0,0.00012216,2]
[421869872,1778254239000,-200.0,0.00012236,2]
[421869873,1778254239000,-500.0,0.00012328,2]
[421869877,1778254239000,-500.0,0.00012328,2]
[421869875,1778254239000,-500.0,0.00012328,2]
[421869874,1778254239000,-500.0,0.00012328,2]
[421869876,1778254239000,-500.0,0.00012328,2]
[421869880,1778254239000,-500.0,0.00012328,2]
[421869861,1778254239000,-500.0,0.00012054,2]
[421869911,1778254239000,-500.0,0.00012602,2]
[421869906,1778254239000,-500.0,0.00012602,2]
[421869914,1778254239000,-500.0,0.00012876,2]
[421869948,1778254239000,-500.0,0.0001315,2]
[421869951,1778254239000,-500.0,0.0001315,2]
[421869952,1778254239000,-500.0,0.0001315,2]
[421869953,1778254239000,-247.78,0.00013424,2]
[421869959,1778254239000,-500.0,0.00013424,2]
[421869955,1778254239000,-500.0,0.00013424,2]
[421869958,1778254239000,-500.0,0.00013424,2]
[421869956,1778254239000,-500.0,0.00013424,2]
[421869960,1778254239000,-500.0,0.00013424,2]
[421869961,1778254239000,-2512.92,0.00013424,2]
[421869962,1778254239000,-500.0,0.00013424,2]
[421869964,1778254239000,-500.0,0.00013424,2]
[421869963,1778254239000,-500.0,0.00013424,2]
[421869968,1778254239000,-645.35,0.00013424,2]
[421869969,1778254239000,-500.0,0.00013424,2]
[421869970,1778254239000,-500.0,0.00013424,2]
[421869966,1778254239000,-214.52,0.00013424,2]
[421869972,1778254239000,-500.0,0.00013698,2]
[421869971,1778254239000,-1000.0,0.00013438,2]
[421869965,1778254239000,-197.53,0.00013424,2]
[421869967,1778254239000,-500.0,0.00013424,2]
[421869976,1778254239000,-500.0,0.00013698,2]
[421869975,1778254239000,-500.0,0.00013698,2]
[421869974,1778254239000,-500.0,0.00013698,2]
[421869977,1778254239000,-2512.92,0.00013698,2]
[421869973,1778254239000,-500.0,0.00013698,2]
[421869978,1778254239000,-500.0,0.00013698,2]
[421869912,1778254239000,-500.0,0.00012602,2]
[421869979,1778254239000,-500.0,0.00013698,2]
[421869950,1778254239000,-645.35,0.0001315,2]
[421869947,1778254239000,-612.0,0.0001315,2]
[421869980,1778254239000,-500.0,0.00013698,2]
[421869933,1778254239000,-1671.92640211,0.000129,2]
[421869949,1778254239000,-500.0,0.0001315,2]
[421869915,1778254239000,-500.0,0.00012876,2]
[421869913,1778254239000,-200.0,0.00012661,2]
[421869920,1778254239000,-500.0,0.00012876,2]
[421869919,1778254239000,-500.0,0.00012876,2]
[421869931,1778254239000,-500.0,0.00012876,2]
[421869932,1778254239000,-500.0,0.00012876,2]
[421869921,1778254239000,-2512.92,0.00012876,2]
[421869922,1778254239000,-500.0,0.00012876,2]
[421869923,1778254239000,-500.0,0.00012876,2]
[421869929,1778254239000,-500.0,0.00012876,2]
[421869928,1778254239000,-500.0,0.00012876,2]
[421869925,1778254239000,-500.0,0.00012876,2]
[421869926,1778254239000,-500.0,0.00012876,2]
[421869930,1778254239000,-645.35,0.00012876,2]
[421869945,1778254239000,-500.0,0.0001315,2]
[421869924,1778254239000,-500.0,0.00012876,2]
[421869939,1778254239000,-500.0,0.0001315,2]
[421869942,1778254239000,-2512.92,0.0001315,2]
[421869936,1778254239000,-500.0,0.0001315,2]
[421869938,1778254239000,-500.0,0.0001315,2]
[421869943,1778254239000,-500.0,0.0001315,2]
[421869941,1778254239000,-500.0,0.0001315,2]
[421869940,1778254239000,-500.0,0.0001315,2]
[421869944,1778254239000,-500.0,0.0001315,2]
[421869946,1778254239000,-500.0,0.0001315,2]
[421869934,1778254239000,-1671.92640209,0.000129,2]
[421869935,1778254239000,-1671.92640209,0.00012917,2]
[421869937,1778254239000,-500.0,0.0001315,2]
[421870022,1778254240000,-500.0,0.00014246,2]
[421870017,1778254240000,-500.0,0.00014246,2]
[421870018,1778254240000,-500.0,0.00014246,2]
[421870019,1778254240000,-500.0,0.00014246,2]
[421870015,1778254240000,-500.0,0.00014246,2]
[421870024,1778254240000,-1115.22137118,0.00014512,2]
[421870012,1778254240000,-160.0,0.000142,4]
[421870016,1778254240000,-2512.92,0.00014246,2]
[421870014,1778254240000,-500.0,0.00014246,2]
[421870013,1778254240000,-341.98515769,0.00014246,2]
[421870021,1778254240000,-645.35,0.00014246,2]
[421870020,1778254240000,-500.0,0.00014246,2]
[421870026,1778254240000,-705.06082706,0.0001452,2]
[421870040,1778254240000,-151.0,0.00014559,2]
[421870027,1778254240000,-2820.24330825,0.0001452,2]
[421870025,1778254240000,-2965.3875441,0.00014518,2]
[421870030,1778254240000,-421.03059255,0.0001452,2]
[421870035,1778254240000,-500.0,0.0001452,2]
[421870029,1778254240000,-500.0,0.0001452,2]
[421870032,1778254240000,-500.0,0.0001452,2]
[421870031,1778254240000,-2512.92,0.0001452,2]
[421870034,1778254240000,-500.0,0.0001452,2]
[421870036,1778254240000,-645.35,0.0001452,2]
[421870037,1778254240000,-500.0,0.0001452,2]
[421870041,1778254240000,-151.682473,0.00014559,2]
[421870023,1778254240000,-152.0,0.000145,7]
[421870043,1778254240000,-500.0,0.00014573,2]
[421870028,1778254240000,-6339.20189612,0.0001452,2]
[421870011,1778254240000,-569.42008937,0.00014175,2]
[421869992,1778254240000,-645.978,0.00013945,2]
[421870008,1778254240000,-655.958,0.00013986,2]
[421870042,1778254240000,-325.5748155,0.00014559,2]
[421869984,1778254240000,-500.0,0.00013698,2]
[421869982,1778254240000,-645.35,0.00013698,2]
[421869981,1778254240000,-500.0,0.00013698,2]
[421869985,1778254240000,-156.0,0.00013699,2]
[421869983,1778254240000,-219.81,0.00013698,2]
[421869986,1778254240000,-1000.0,0.00013699,2]
[421869998,1778254240000,-500.0,0.00013972,2]
[421869995,1778254240000,-1671.92640209,0.00013946,2]
[421869996,1778254240000,-500.0,0.00013972,2]
[421869997,1778254240000,-500.0,0.00013972,2]
[421869987,1778254240000,-1000.0,0.00013699,2]
[421869988,1778254240000,-160.78033228,0.000139,2]
[421870000,1778254240000,-415.71,0.00013972,2]
[421869989,1778254240000,-160.0,0.000139,3]
[421869990,1778254240000,-1411.0,0.00013945,2]
[421869994,1778254240000,-185.0,0.00013945,2]
[421869991,1778254240000,-2208.121,0.00013945,2]
[421869999,1778254240000,-500.0,0.00013972,2]
[421870003,1778254240000,-500.0,0.00013972,2]
[421870010,1778254240000,-240.35987896,0.00014058,21]
[421870007,1778254240000,-500.0,0.00013972,2]
[421870002,1778254240000,-500.0,0.00013972,2]
[421870001,1778254240000,-2512.92,0.00013972,2]
[421870006,1778254240000,-645.35,0.00013972,2]
[421870005,1778254240000,-500.0,0.00013972,2]
[421870004,1778254240000,-500.0,0.00013972,2]
[421870009,1778254240000,-1001.26519672,0.00014,2]
[421869993,1778254240000,-442.0,0.00013945,2]
[421870038,1778254240000,-501.1993489,0.00014553,2]
[421870033,1778254240000,-500.0,0.0001452,2]
[421870044,1778254240000,-500.0,0.00014573,2]
[421870089,1778254240000,-500.0,0.00014973,2]
[421870086,1778254240000,-500.0,0.00014973,2]
[421870092,1778254240000,-500.0,0.00014973,2]
[421870091,1778254240000,-500.0,0.00014973,2]
[421870090,1778254240000,-532.82588762,0.00014973,2]
[421870094,1778254240000,-500.0,0.00014973,2]
[421870095,1778254240000,-500.0,0.00014973,2]
[421870093,1778254240000,-500.0,0.00014973,2]
[421870096,1778254240000,-500.0,0.00014973,2]
[421870097,1778254240000,-500.0,0.00014973,2]
[421870098,1778254240000,-500.0,0.00014973,2]
[421870099,1778254240000,-500.0,0.00014973,2]
[421870101,1778254240000,-500.17922279,0.00014973,2]
[421870087,1778254240000,-500.0,0.00014973,2]
[421870100,1778254240000,-500.0,0.00014973,2]
[421870103,1778254240000,-500.0,0.00014973,2]
[421870104,1778254240000,-521.85455091,0.00014973,2]
[421870105,1778254240000,-500.0,0.00014973,2]
[421870106,1778254240000,-164.13521246,0.00014973,2]
[421870107,1778254240000,-500.0,0.00014973,2]
[421870109,1778254240000,-500.0,0.00014973,2]
[421870108,1778254240000,-500.0,0.00014973,2]
[421870111,1778254240000,-500.0,0.00014973,2]
[421870113,1778254240000,-1671.92640209,0.00014976,2]
[421870112,1778254240000,-500.0,0.00014973,2]
[421870114,1778254240000,-71459.04635157,0.00015,2]
[421870115,1778254240000,-267918.03186327,0.00015,2]
[421870039,1778254240000,-151.0,0.00014559,2]
[421870102,1778254240000,-213.62354478,0.00014973,2]
[421870088,1778254240000,-500.0,0.00014973,2]
[421870110,1778254240000,-500.0,0.00014973,2]
[421870084,1778254240000,-500.0,0.00014973,2]
[421870045,1778254240000,-500.0,0.00014573,2]
[421870085,1778254240000,-500.0,0.00014973,2]
[421870046,1778254240000,-500.0,0.00014573,2]
[421870048,1778254240000,-300.856,0.00014599,2]
[421870052,1778254240000,-59163.06945485,0.000147,5]
[421870049,1778254240000,-486.84,0.000146,2]
[421870054,1778254240000,-143384.58695167,0.000147,2]
[421870055,1778254240000,-160.0,0.00014724,3]
[421870053,1778254240000,-160.0,0.000147,5]
[421870056,1778254240000,-1000.0,0.00014781,2]
[421870050,1778254240000,-300.0,0.000146,3]
[421870057,1778254240000,-244.0,0.00014781,2]
[421870051,1778254240000,-202914.05208607,0.000147,5]
[421870059,1778254240000,-500.0,0.00014794,2]
[421870047,1778254240000,-500.0,0.00014573,2]
[421870061,1778254240000,-2512.92,0.00014794,2]
[421870065,1778254240000,-500.0,0.00014794,2]
[421870073,1778254240000,-500.0,0.00014794,2]
[421870083,1778254240000,-500.0,0.00014973,2]
[421870079,1778254240000,-193.58393974,0.000149,2]
[421870082,1778254240000,-500.0,0.00014973,2]
[421870080,1778254240000,-193.58393973,0.000149,2]
[421870081,1778254240000,-4349.29946429,0.00014936,2]
[421870071,1778254240000,-645.35,0.00014794,2]
[421870075,1778254240000,-211.63102837,0.00014822,3]
[421870069,1778254240000,-500.0,0.00014794,2]
[421870067,1778254240000,-500.0,0.00014794,2]
[421870077,1778254240000,-1661.022653,0.0001485,2]
[421870063,1778254240000,-500.0,0.00014794,2]
[421870152,1778254241000,-198.68494184,0.00015334,2]
[421870142,1778254241000,-25116.51053955,0.000152,2]
[421870145,1778254241000,-112151.08797497,0.000152,2]
[421870141,1778254241000,-1792.32171913,0.00015187,2]
[421870148,1778254241000,-1289.56096638,0.00015265,2]
[421870149,1778254241000,-1353.24382249,0.000153,2]
[421870146,1778254241000,-413.153734,0.0001521,7]
[421870151,1778254241000,-1289.56096638,0.00015309,2]
[421870150,1778254241000,-10208.42789502,0.000153,2]
[421870143,1778254241000,-1353.24382249,0.000152,2]
[421870159,1778254241000,-645.35,0.00015342,2]
[421870158,1778254241000,-565.26587149,0.00015342,2]
[421870156,1778254241000,-193.27533907,0.00015342,2]
[421870160,1778254241000,-500.0,0.00015342,2]
[421870157,1778254241000,-500.0,0.00015342,2]
[421870154,1778254241000,-2512.92,0.00015342,2]
[421870155,1778254241000,-500.0,0.00015342,2]
[421870161,1778254241000,-1289.56096638,0.00015353,7]
[421870162,1778254241000,-1289.56096638,0.00015397,7]
[421870147,1778254241000,-1289.56096638,0.0001522,2]
[421870164,1778254241000,-151.0,0.00015418,2]
[421870153,1778254241000,-500.0,0.00015342,2]
[421870137,1778254241000,-1100.50703206,0.00015121,2]
[421870126,1778254241000,-500.0,0.00015068,2]
[421870140,1778254241000,-160.0,0.00015122,4]
[421870163,1778254241000,-151.3368826,0.00015416,2]
[421870118,1778254241000,-10208.42789502,0.00015,2]